fUST/lending_fUST_20250204
["ID","MTS","AMOUNT","RATE_DAILY","PERIOD"]
[351486917,1738599041881,-500.0,0.00017123,2]
[351486919,1738599041891,-3665.7,0.00017123,2]
[351486921,1738599041901,-690.04,0.00017123,2]
[351486923,1738599041911,-709.29,0.00017123,2]
[351486925,1738599041920,-3371.02,0.00017123,2]
[351486927,1738599041930,-500.0,0.00017123,2]
[351486929,1738599041940,-13099.03041793,0.00017126,2]
[351486931,1738599041949,-153.0,0.00017204,2]
[351486933,1738599041959,-224.14,0.00017243,2]
[351486935,1738599041968,-500.0,0.0001726,2]
[351486937,1738599041982,-500.0,0.0001726,2]
[351486939,1738599041991,-1088.11,0.0001726,2]
[351486941,1738599042000,-630.15,0.0001726,2]
[351486943,1738599042010,-500.0,0.0001726,2]
[351486945,1738599042020,-500.0,0.0001726,2]
[351486947,1738599042029,-500.0,0.0001726,2]
[351486949,1738599042041,-500.0,0.0001726,2]
[351486951,1738599042050,-500.0,0.0001726,2]
[351486953,1738599042060,-230.38198853,0.0001726,2]
[351486955,1738599042069,-500.0,0.0001726,2]
[351486957,1738599042079,-2210.18,0.0001726,2]
[351486958,1738599042090,-500.0,0.0001726,2]
[351486960,1738599042100,-580.68,0.0001726,2]
[351486962,1738599042110,-540.99,0.0001726,2]
[351486964,1738599042120,-500.0,0.0001726,2]
[351486967,1738599042130,-500.0,0.0001726,2]
[351486968,1738599042139,-457.36680973,0.0001726,2]
[351486970,1738599042149,-1859.21,0.0001726,2]
[351486972,1738599042159,-506.21,0.0001726,2]
[351486974,1738599042169,-500.0,0.0001726,2]
[351486976,1738599042179,-500.0,0.0001726,2]
[351486978,1738599042189,-500.0,0.0001726,2]
[351486980,1738599042199,-702.59,0.0001726,2]
[351486982,1738599042208,-1023.68,0.0001726,2]
[351486984,1738599042218,-500.0,0.0001726,2]
[351486986,1738599042228,-500.0,0.0001726,2]
[351486988,1738599042240,-5229.32,0.0001726,2]
[351486990,1738599042249,-1367.8,0.0001726,2]
[351486992,1738599042259,-500.0,0.0001726,2]
[351486994,1738599042269,-2666.55,0.0001726,2]
[351486996,1738599042278,-500.0,0.0001726,2]
[351486998,1738599042288,-831.09,0.0001726,2]
[351487000,1738599042297,-500.0,0.0001726,2]
[351487002,1738599042306,-560.91,0.0001726,2]
[351487004,1738599042315,-1481.13,0.0001726,2]
[351487006,1738599042325,-1384.26,0.0001726,2]
[351487008,1738599042335,-6177.66,0.0001726,2]
[351487010,1738599042344,-693.65,0.0001726,2]
[351487012,1738599042354,-542.86,0.0001726,2]
[351487014,1738599042363,-500.0,0.0001726,2]
[351487016,1738599042373,-500.0,0.0001726,2]
[351487018,1738599042384,-500.0,0.0001726,2]
[351487020,1738599042394,-712.46,0.0001726,2]
[351487021,1738599042404,-13128.98,0.0001726,2]
[351487023,1738599042415,-500.0,0.0001726,2]
[351487024,1738599042425,-7168.15,0.0001726,2]
[351487025,1738599042435,-500.0,0.0001726,2]
[351487026,1738599042445,-1622.5,0.0001726,2]
[351487027,1738599042454,-776.91,0.0001726,2]
[351487028,1738599042464,-745.6,0.0001726,2]
[351487029,1738599042475,-1474.4,0.0001726,2]
[351487030,1738599042488,-503.72,0.0001726,2]
[351487031,1738599042500,-500.0,0.0001726,2]
[351487032,1738599042510,-1239.99,0.0001726,2]
[351487033,1738599042519,-500.0,0.0001726,2]
[351487035,1738599042529,-3665.7,0.0001726,2]
[351487037,1738599042538,-690.04,0.0001726,2]
[351487038,1738599042547,-709.29,0.0001726,2]
[351487039,1738599042559,-3371.02,0.0001726,2]
[351487040,1738599042568,-500.0,0.0001726,2]
[351487041,1738599042578,-600.0,0.0001728,2]
[351487042,1738599042588,-1000.0,0.00017292,2]
[351487043,1738599042597,-500.0,0.00017397,2]
[351487044,1738599042607,-500.0,0.00017397,2]
[351487045,1738599042616,-1088.11,0.00017397,2]
[351487046,1738599042625,-630.15,0.00017397,2]
[351487047,1738599042635,-500.0,0.00017397,2]
[351487048,1738599042644,-236.20432829,0.00017397,2]
[351487049,1738599042653,-500.0,0.00017397,2]
[351487050,1738599042663,-500.0,0.00017397,2]
[351487051,1738599042671,-500.0,0.00017397,2]
[351487052,1738599042681,-500.0,0.00017397,2]
[351487054,1738599042690,-2210.18,0.00017397,2]
[351487056,1738599042700,-500.0,0.00017397,2]
[351487058,1738599042710,-580.68,0.00017397,2]
[351487060,1738599042719,-540.99,0.00017397,2]
[351487062,1738599042732,-500.0,0.00017397,2]
[351487065,1738599042742,-500.0,0.00017397,2]
[351487069,1738599042752,-1859.21,0.00017397,2]
[351487071,1738599042763,-506.21,0.00017397,2]
[351487074,1738599042773,-500.0,0.00017397,2]
[351487076,1738599042783,-500.0,0.00017397,2]
[351487080,1738599042794,-702.59,0.00017397,2]
[351487085,1738599042803,-1023.68,0.00017397,2]
[351487088,1738599042813,-500.0,0.00017397,2]
[351487093,1738599042823,-500.0,0.00017397,2]
[351487097,1738599042832,-5229.32,0.00017397,2]
[351487102,1738599042842,-1367.8,0.00017397,2]
[351487106,1738599042852,-500.0,0.00017397,2]
[351487111,1738599042861,-2666.55,0.00017397,2]
[351487115,1738599042871,-500.0,0.00017397,2]
[351487119,1738599042880,-831.09,0.00017397,2]
[351487122,1738599042890,-500.0,0.00017397,2]
[351487125,1738599042900,-560.91,0.00017397,2]
[351487129,1738599042909,-1481.13,0.00017397,2]
[351487131,1738599042919,-1384.26,0.00017397,2]
[351487140,1738599043027,-6177.66,0.00017397,2]
[351487141,1738599043038,-693.65,0.00017397,2]
[351487142,1738599043049,-542.86,0.00017397,2]
[351487143,1738599043059,-500.0,0.00017397,2]
[351487144,1738599043068,-500.0,0.00017397,2]
[351487145,1738599043078,-500.0,0.00017397,2]
[351487146,1738599043087,-712.46,0.00017397,2]
[351487147,1738599043097,-13128.98,0.00017397,2]
[351487148,1738599043107,-500.0,0.00017397,2]
[351487149,1738599043116,-7168.15,0.00017397,2]
[351487150,1738599043125,-500.0,0.00017397,2]
[351487151,1738599043134,-1622.5,0.00017397,2]
[351487152,1738599043144,-776.91,0.00017397,2]
[351487153,1738599043153,-745.6,0.00017397,2]
[351487154,1738599043162,-1474.4,0.00017397,2]
[351487155,1738599043173,-503.72,0.00017397,2]
[351487156,1738599043182,-500.0,0.00017397,2]
[351487157,1738599043192,-1239.99,0.00017397,2]
[351487158,1738599043201,-3665.7,0.00017397,2]
[351487159,1738599043211,-500.0,0.00017397,2]
[351487160,1738599043220,-690.04,0.00017397,2]
[351487161,1738599043232,-709.29,0.00017397,2]
[351487162,1738599043241,-3371.02,0.00017397,2]
[351487163,1738599043251,-500.0,0.00017397,2]
[351487164,1738599043261,-8000.0,0.000174,2]
[351487165,1738599043274,-170.03148904,0.000174,2]
[351487166,1738599043284,-768.6559825,0.0001746,2]
[351487167,1738599043294,-1009.69412624,0.00017461,2]
[351487168,1738599043305,-500.0,0.00017473,2]
[351487169,1738599043314,-121131.57914743,0.000175,15]
[351487193,1738599043534,-311386.384155,0.000175,15]
[351487211,1738599043703,-500.0,0.00016438,2]
[351487213,1738599043715,-522.13852314,0.000174,2]
[351487215,1738599043725,-33520.43736959,0.000175,15]
[351487473,1738599046574,-275.94714411,0.00016438,2]
[351487475,1738599046584,-500.0,0.00016438,2]
[351487477,1738599046594,-500.0,0.00016575,2]
[351487479,1738599046604,-500.0,0.00016711,2]
[351487481,1738599046614,-500.0,0.00016711,2]
[351487483,1738599046623,-228.64234668,0.00016711,2]
[351487485,1738599046633,-425.22155929,0.00016711,2]
[351487487,1738599046643,-500.0,0.00016712,2]
[351487489,1738599046652,-500.0,0.00016849,2]
[351487491,1738599046661,-153.0,0.0001688,2]
[351487493,1738599046671,-500.0,0.00016986,2]
[351487495,1738599046681,-500.0,0.00017123,2]
[351487497,1738599046690,-500.0,0.0001726,2]
[351487499,1738599046700,-5267.58953072,0.000175,15]
[351487501,1738599046711,-21410.80215717,0.000175,15]
[351487503,1738599046724,-1661.54085126,0.000175,15]
[351488328,1738599152316,160.0,0.0002093,120]
[351488338,1738599394709,420.29534045,0.0002181,120]
[351488347,1738599639713,29589.71309787,0.000218,120]
[351488349,1738599709696,192.838399,0.00013699,2]
[351488353,1738599780964,362.932868,0.00013973,2]
[351488450,1738600129757,3501.74833993,0.00013,2]
[351488517,1738600232388,-304.98,0.00015258,2]
[351488519,1738600232400,-181.8705905,0.00015258,2]
[351488521,1738600232410,-252.1670163,0.00015488,2]
[351488523,1738600232420,-300.0,0.00015656,2]
[351488524,1738600232430,-1315.9290985,0.00015657,2]
[351488547,1738600232611,-23584.0709015,0.00015657,2]
[351488550,1738600232621,-1327.84044476,0.00016,2]
[351488553,1738600232631,-1000.0,0.000164,2]
[351488557,1738600232642,-940.71468203,0.000164,2]
[351488560,1738600232652,-8349.74422137,0.00016437,2]
[351488563,1738600232662,-500.0,0.00016438,2]
[351488566,1738600232672,-500.0,0.00016438,2]
[351488570,1738600232682,-500.0,0.00016438,2]
[351488573,1738600232696,-500.0,0.00016438,2]
[351488576,1738600232705,-500.0,0.00016438,2]
[351488579,1738600232715,-558.6,0.00016438,2]
[351488582,1738600232724,-519.1434309,0.00016438,2]
[351488584,1738600232734,-500.0,0.00016438,2]
[351488588,1738600232744,-997.43,0.00016438,2]
[351488591,1738600232754,-500.0,0.00016438,2]
[351488594,1738600232764,-500.0,0.00016438,2]
[351488597,1738600232775,-500.0,0.00016438,2]
[351488600,1738600232785,-500.0,0.00016438,2]
[351488603,1738600232799,-500.0,0.00016438,2]
[351488606,1738600232809,-500.0,0.00016438,2]
[351488608,1738600232819,-500.0,0.00016438,2]
[351488610,1738600232828,-500.0,0.00016438,2]
[351488612,1738600232838,-500.0,0.00016438,2]
[351488615,1738600232848,-532.29,0.00016438,2]
[351488618,1738600232858,-500.0,0.00016438,2]
[351488621,1738600232868,-500.0,0.00016438,2]
[351488624,1738600232878,-500.0,0.00016438,2]
[351488627,1738600232888,-500.0,0.00016438,2]
[351488630,1738600232898,-5011.44,0.00016438,2]
[351488633,1738600232907,-150.11,0.00016438,2]
[351488636,1738600232917,-500.0,0.00016438,2]
[351488639,1738600232927,-500.0,0.00016438,2]
[351488642,1738600232941,-673.32,0.00016438,2]
[351488645,1738600232950,-500.0,0.00016438,2]
[351488648,1738600232960,-1001.98,0.00016438,2]
[351488651,1738600232970,-500.0,0.00016438,2]
[351488654,1738600232980,-1666.55,0.00016438,2]
[351488657,1738600232990,-500.0,0.00016438,2]
[351488660,1738600232999,-500.0,0.00016438,2]
[351488663,1738600233009,-500.0,0.00016438,2]
[351488666,1738600233019,-6139.29,0.00016438,2]
[351488669,1738600233029,-796.47,0.00016438,2]
[351488672,1738600233040,-945.65,0.00016438,2]
[351488675,1738600233051,-500.0,0.00016438,2]
[351488677,1738600233061,-2716.81,0.00016438,2]
[351488681,1738600233071,-500.0,0.00016438,2]
[351488684,1738600233083,-500.0,0.00016438,2]
[351488687,1738600233093,-206.38100003,0.00016438,2]
[351488690,1738600233104,-500.0,0.00016438,2]
[351488693,1738600233115,-500.0,0.00016438,2]
[351488695,1738600233125,-537.54,0.00016438,2]
[351488697,1738600233135,-500.0,0.00016438,2]
[351488699,1738600233145,-6869.48,0.00016438,2]
[351488701,1738600233155,-13247.45,0.00016438,2]
[351488703,1738600233165,-1326.99,0.00016438,2]
[351488705,1738600233176,-2025.99,0.00016438,2]
[351488707,1738600233187,-664.75,0.00016438,2]
[351488709,1738600233196,-744.54,0.00016438,2]
[351488711,1738600233207,-1188.32,0.00016438,2]
[351488713,1738600233217,-520.24,0.00016438,2]
[351488715,1738600233228,-500.0,0.00016438,2]
[351488717,1738600233239,-500.0,0.00016438,2]
[351488719,1738600233249,-500.0,0.00016438,2]
[351488721,1738600233260,-500.0,0.00016438,2]
[351488723,1738600233270,-682.77,0.00016438,2]
[351488725,1738600233280,-500.0,0.00016438,2]
[351488727,1738600233290,-500.0,0.00016438,2]
[351488729,1738600233300,-500.0,0.00016438,2]
[351488731,1738600233309,-3581.81,0.00016438,2]
[351488733,1738600233319,-714.53,0.00016438,2]
[351488735,1738600233329,-1230.96,0.00016438,2]
[351488737,1738600233340,-500.0,0.00016438,2]
[351488739,1738600233350,-1819.07,0.00016438,2]
[351488741,1738600233360,-619.63,0.00016438,2]
[351488743,1738600233370,-1030.33039073,0.00016438,2]
[351488865,1738600238339,-1843.37913304,0.00016438,2]
[351488866,1738600238398,-409.77047623,0.00016438,2]
[351488867,1738600238408,-500.0,0.00016438,2]
[351488868,1738600238419,-1006.42540066,0.00016438,2]
[351488869,1738600238457,-437.65459934,0.00016438,2]
[351488870,1738600238468,-500.0,0.00016438,2]
[351488871,1738600238479,-500.0,0.00016438,2]
[351488873,1738600238489,-500.0,0.00016438,2]
[351488875,1738600238499,-700.57,0.00016438,2]
[351488877,1738600238510,-188.06988654,0.00016438,2]
[351488878,1738600238520,-518.3994892,0.00016438,2]
[351488880,1738600238532,-500.0,0.00016438,2]
[351488883,1738600238543,-500.0,0.00016438,2]
[351488884,1738600238554,-500.0,0.00016438,2]
[351488885,1738600238565,-345.56525585,0.00016438,2]
[351488886,1738600238575,-500.0,0.000165,7]
[351488887,1738600238585,-320.63,0.000165,7]
[351488888,1738600238595,-11840.63875995,0.000165,2]
[351488889,1738600238607,-13770.96078321,0.00016544,2]
[351488890,1738600238617,-500.0,0.00016575,2]
[351488891,1738600238628,-236.20432829,0.00016575,2]
[351488892,1738600238643,-500.0,0.00016575,2]
[351488893,1738600238664,-500.0,0.00016575,2]
[351488894,1738600238679,-558.6,0.00016575,2]
[351488895,1738600238697,-500.0,0.00016575,2]
[351488896,1738600238707,-997.43,0.00016575,2]
[351488897,1738600238718,-500.0,0.00016575,2]
[351488898,1738600238729,-500.0,0.00016575,2]
[351488899,1738600238741,-500.0,0.00016575,2]
[351488900,1738600238750,-500.0,0.00016575,2]
[351488901,1738600238761,-500.0,0.00016575,2]
[351488902,1738600238772,-500.0,0.00016575,2]
[351488903,1738600238791,-500.0,0.00016575,2]
[351488904,1738600238803,-500.0,0.00016575,2]
[351488905,1738600238812,-532.29,0.00016575,2]
[351488906,1738600238823,-500.0,0.00016575,2]
[351488907,1738600238834,-500.0,0.00016575,2]
[351488908,1738600238845,-500.0,0.00016575,2]
[351488909,1738600238856,-500.0,0.00016575,2]
[351488910,1738600238868,-5011.44,0.00016575,2]
[351488911,1738600238879,-500.0,0.00016575,2]
[351488912,1738600238890,-500.0,0.00016575,2]
[351488913,1738600238899,-673.32,0.00016575,2]
[351488914,1738600238910,-500.0,0.00016575,2]
[351488915,1738600238920,-1001.98,0.00016575,2]
[351488916,1738600238930,-500.0,0.00016575,2]
[351488917,1738600238943,-1666.55,0.00016575,2]
[351488918,1738600238953,-500.0,0.00016575,2]
[351488919,1738600238963,-6139.29,0.00016575,2]
[351488920,1738600238972,-796.47,0.00016575,2]
[351488921,1738600238981,-945.65,0.00016575,2]
[351488922,1738600238991,-500.0,0.00016575,2]
[351488923,1738600239001,-2716.81,0.00016575,2]
[351488925,1738600239011,-500.0,0.00016575,2]
[351488927,1738600239020,-452.7874046,0.00016575,2]
[351488929,1738600239031,-500.0,0.00016575,2]
[351488931,1738600239040,-537.54,0.00016575,2]
[351488933,1738600239050,-500.0,0.00016575,2]
[351488935,1738600239059,-6869.48,0.00016575,2]
[351488937,1738600239068,-13247.45,0.00016575,2]
[351488939,1738600239079,-1326.99,0.00016575,2]
[351488941,1738600239088,-2025.99,0.00016575,2]
[351488943,1738600239098,-664.75,0.00016575,2]
[351488945,1738600239108,-744.54,0.00016575,2]
[351488947,1738600239118,-1188.32,0.00016575,2]
[351488949,1738600239127,-520.24,0.00016575,2]
[351488951,1738600239137,-204.20638549,0.00016575,2]
[351488952,1738600239146,-257.17410142,0.00016575,2]
[351488954,1738600239156,-500.0,0.00016575,2]
[351488956,1738600239165,-500.0,0.00016575,2]
[351488958,1738600239175,-682.77,0.00016575,2]
[351488960,1738600239188,-500.0,0.00016575,2]
[351488962,1738600239198,-500.0,0.00016575,2]
[351488964,1738600239207,-3581.81,0.00016575,2]
[351488966,1738600239217,-714.53,0.00016575,2]
[351488968,1738600239227,-1230.96,0.00016575,2]
[351488970,1738600239236,-500.0,0.00016575,2]
[351488972,1738600239246,-1819.07,0.00016575,2]
[351488973,1738600239256,-619.63,0.00016575,2]
[351488975,1738600239266,-3283.48,0.00016575,2]
[351488978,1738600239276,-500.0,0.00016575,2]
[351488980,1738600239286,-1444.08,0.00016575,2]
[351488982,1738600239296,-500.0,0.00016575,2]
[351488984,1738600239306,-500.0,0.00016575,2]
[351488986,1738600239316,-500.0,0.00016575,2]
[351488988,1738600239326,-700.57,0.00016575,2]
[351488990,1738600239335,-500.0,0.00016575,2]
[351488991,1738600239345,-500.0,0.00016575,2]
[351488993,1738600239355,-500.0,0.00016575,2]
[351488995,1738600239364,-179.50388427,0.00016612,2]
[351488997,1738600239374,-156.721,0.0001663,2]
[351488999,1738600239384,-358.83646619,0.00016711,2]
[351489001,1738600239394,-230.14379352,0.00016711,2]
[351489003,1738600239403,-500.0,0.00016711,2]
[351489005,1738600239413,-500.0,0.00016711,2]
[351489007,1738600239423,-500.0,0.00016711,2]
[351489009,1738600239432,-417.22173424,0.00016711,2]
[351489011,1738600239445,-500.0,0.00016711,2]
[351489012,1738600239454,-500.0,0.00016711,2]
[351489013,1738600239464,-549.955847,0.00016711,2]
[351489014,1738600239474,-500.0,0.00016711,2]
[351489015,1738600239485,-500.0,0.00016712,2]
[351489016,1738600239495,-279.62031865,0.00016712,2]
[351489017,1738600239505,-500.0,0.00016712,2]
[351489018,1738600239515,-558.6,0.00016712,2]
[351489019,1738600239525,-500.0,0.00016712,2]
[351489020,1738600239534,-997.43,0.00016712,2]
[351489022,1738600239543,-500.0,0.00016712,2]
[351489024,1738600239552,-500.0,0.00016712,2]
[351489025,1738600239562,-500.0,0.00016712,2]
[351489027,1738600239571,-500.0,0.00016712,2]
[351489029,1738600239581,-500.0,0.00016712,2]
[351489032,1738600239591,-500.0,0.00016712,2]
[351489034,1738600239602,-500.0,0.00016712,2]
[351489036,1738600239611,-500.0,0.00016712,2]
[351489038,1738600239621,-532.29,0.00016712,2]
[351489040,1738600239630,-500.0,0.00016712,2]
[351489041,1738600239640,-500.0,0.00016712,2]
[351489043,1738600239649,-500.0,0.00016712,2]
[351489045,1738600239659,-500.0,0.00016712,2]
[351489047,1738600239668,-5011.44,0.00016712,2]
[351489049,1738600239678,-500.0,0.00016712,2]
[351489051,1738600239690,-500.0,0.00016712,2]
[351489052,1738600239699,-673.32,0.00016712,2]
[351489053,1738600239708,-500.0,0.00016712,2]
[351489054,1738600239718,-1001.98,0.00016712,2]
[351489055,1738600239728,-500.0,0.00016712,2]
[351489056,1738600239737,-1666.55,0.00016712,2]
[351489059,1738600239746,-500.0,0.00016712,2]
[351489060,1738600239755,-6139.29,0.00016712,2]
[351489062,1738600239765,-796.47,0.00016712,2]
[351489064,1738600239778,-945.65,0.00016712,2]
[351489066,1738600239790,-500.0,0.00016712,2]
[351489068,1738600239800,-2716.81,0.00016712,2]
[351489070,1738600239811,-500.0,0.00016712,2]
[351489072,1738600239823,-500.0,0.00016712,2]
[351489074,1738600239832,-537.54,0.00016712,2]
[351489076,1738600239842,-500.0,0.00016712,2]
[351489078,1738600239851,-6869.48,0.00016712,2]
[351489080,1738600239861,-13247.45,0.00016712,2]
[351489082,1738600239873,-1326.99,0.00016712,2]
[351489084,1738600239883,-2025.99,0.00016712,2]
[351489086,1738600239892,-664.75,0.00016712,2]
[351489088,1738600239902,-744.54,0.00016712,2]
[351489090,1738600239912,-1188.32,0.00016712,2]
[351489092,1738600239921,-520.24,0.00016712,2]
[351489094,1738600239931,-524.96188372,0.00016712,2]
[351489096,1738600239944,-500.0,0.00016712,2]
[351489098,1738600239954,-682.77,0.00016712,2]
[351489100,1738600239965,-500.0,0.00016712,2]
[351489102,1738600239976,-500.0,0.00016712,2]
[351489104,1738600239987,-3581.81,0.00016712,2]
[351489106,1738600239998,-714.53,0.00016712,2]
[351489108,1738600240008,-1230.96,0.00016712,2]
[351489110,1738600240019,-500.0,0.00016712,2]
[351489112,1738600240029,-1819.07,0.00016712,2]
[351489114,1738600240040,-619.63,0.00016712,2]
[351489116,1738600240050,-3283.48,0.00016712,2]
[351489118,1738600240060,-500.0,0.00016712,2]
[351489120,1738600240071,-1444.08,0.00016712,2]
[351489122,1738600240082,-500.0,0.00016712,2]
[351489124,1738600240094,-500.0,0.00016712,2]
[351489127,1738600240105,-500.0,0.00016712,2]
[351489129,1738600240116,-700.57,0.00016712,2]
[351489130,1738600240127,-493.42991784,0.00016712,2]
[351489133,1738600240138,-500.0,0.00016712,2]
[351489135,1738600240148,-500.0,0.00016712,2]
[351489136,1738600240158,-823.04434729,0.00016755,2]
[351489138,1738600240168,-448.98,0.00016774,2]
[351489141,1738600240179,-537.0,0.00016839,2]
[351489143,1738600240197,-1994.0,0.00016839,2]
[351489145,1738600240207,-2299.0,0.00016839,2]
[351489147,1738600240216,-500.0,0.00016849,2]
[351489149,1738600240226,-500.0,0.00016849,2]
[351489151,1738600240236,-558.6,0.00016849,2]
[351489153,1738600240246,-307.42456671,0.00016849,2]
[351489155,1738600240256,-997.43,0.00016849,2]
[351489157,1738600240266,-500.0,0.00016849,2]
[351489159,1738600240276,-500.0,0.00016849,2]
[351489161,1738600240286,-239.77857216,0.00016849,2]
[351489163,1738600240296,-500.0,0.00016849,2]
[351489165,1738600240306,-500.0,0.00016849,2]
[351489167,1738600240315,-500.0,0.00016849,2]
[351489169,1738600240325,-500.0,0.00016849,2]
[351489171,1738600240335,-500.0,0.00016849,2]
[351489173,1738600240344,-532.29,0.00016849,2]
[351489175,1738600240354,-500.0,0.00016849,2]
[351489177,1738600240363,-500.0,0.00016849,2]
[351489179,1738600240374,-500.0,0.00016849,2]
[351489181,1738600240386,-500.0,0.00016849,2]
[351489183,1738600240395,-5011.44,0.00016849,2]
[351489185,1738600240405,-500.0,0.00016849,2]
[351489187,1738600240415,-500.0,0.00016849,2]
[351489189,1738600240425,-673.32,0.00016849,2]
[351489191,1738600240435,-500.0,0.00016849,2]
[351489193,1738600240449,-1001.98,0.00016849,2]
[351489206,1738600240581,-500.0,0.00016849,2]
[351489208,1738600240593,-1666.55,0.00016849,2]
[351489210,1738600240603,-500.0,0.00016849,2]
[351489211,1738600240612,-6139.29,0.00016849,2]
[351489213,1738600240622,-796.47,0.00016849,2]
[351489214,1738600240631,-945.65,0.00016849,2]
[351489216,1738600240640,-500.0,0.00016849,2]
[351489218,1738600240649,-2716.81,0.00016849,2]
[351489219,1738600240659,-500.0,0.00016849,2]
[351489221,1738600240669,-500.0,0.00016849,2]
[351489223,1738600240678,-537.54,0.00016849,2]
[351489224,1738600240690,-500.0,0.00016849,2]
[351489226,1738600240700,-6869.48,0.00016849,2]
[351489227,1738600240710,-13247.45,0.00016849,2]
[351489229,1738600240719,-1326.99,0.00016849,2]
[351489230,1738600240729,-2025.99,0.00016849,2]
[351489232,1738600240738,-664.75,0.00016849,2]
[351489233,1738600240748,-744.54,0.00016849,2]
[351489235,1738600240758,-1188.32,0.00016849,2]
[351489237,1738600240768,-520.24,0.00016849,2]
[351489238,1738600240781,-500.0,0.00016849,2]
[351489240,1738600240792,-682.77,0.00016849,2]
[351489241,1738600240802,-500.0,0.00016849,2]
[351489243,1738600240811,-500.0,0.00016849,2]
[351489245,1738600240822,-3581.81,0.00016849,2]
[351489247,1738600240832,-714.53,0.00016849,2]
[351489248,1738600240842,-1230.96,0.00016849,2]
[351489250,1738600240852,-500.0,0.00016849,2]
[351489251,1738600240862,-1819.07,0.00016849,2]
[351489253,1738600240872,-619.63,0.00016849,2]
[351489255,1738600240885,-3283.48,0.00016849,2]
[351489257,1738600240895,-500.0,0.00016849,2]
[351489258,1738600240906,-1444.08,0.00016849,2]
[351489260,1738600240916,-500.0,0.00016849,2]
[351489262,1738600240926,-500.0,0.00016849,2]
[351489264,1738600240937,-500.0,0.00016849,2]
[351489265,1738600240950,-700.57,0.00016849,2]
[351489267,1738600240960,-500.0,0.00016849,2]
[351489268,1738600240970,-500.0,0.00016849,2]
[351489270,1738600240980,-500.0,0.00016914,2]
[351489272,1738600240990,-212.54980146,0.00016914,2]
[351489273,1738600240999,-153.0,0.0001692,2]
[351489275,1738600241009,-153.0,0.0001692,2]
[351489277,1738600241018,-153.0,0.0001692,2]
[351489279,1738600241028,-153.0,0.0001692,2]
[351489280,1738600241037,-153.0,0.0001692,2]
[351489282,1738600241047,-153.0,0.0001692,2]
[351489284,1738600241056,-153.0,0.0001692,2]
[351489285,1738600241067,-153.0,0.0001692,2]
[351489287,1738600241076,-153.0,0.0001692,2]
[351489289,1738600241086,-153.0,0.0001692,2]
[351489290,1738600241095,-1000.0,0.00016969,2]
[351489292,1738600241105,-500.0,0.00016986,2]
[351489294,1738600241115,-500.0,0.00016986,2]
[351489296,1738600241124,-558.6,0.00016986,2]
[351489297,1738600241134,-997.43,0.00016986,2]
[351489299,1738600241143,-547.68,0.00016986,2]
[351489301,1738600241152,-500.0,0.00016986,2]
[351489302,1738600241161,-500.0,0.00016986,2]
[351489304,1738600241171,-500.0,0.00016986,2]
[351489306,1738600241180,-230.38198853,0.00016986,2]
[351489308,1738600241193,-500.0,0.00016986,2]